bitfinex/quotes_SOLUSD_20260105
["timestamp","ask_amount","ask_price","bid_price","bid_amount"]
[1767628744915,13.5,135.98,135.93,11.83099667]
[1767628744916,13.5,135.98,135.94,0.71839683]
[1767628745096,17.25592032,135.98,135.94,0.71839683]
[1767628745297,24.61005855,135.98,135.94,0.71839683]
[1767628745501,11.21005855,135.98,135.94,0.71839683]
[1767628746428,3.75592032,135.97,135.94,0.71839683]
[1767628747092,8.12870203,135.98,135.94,0.71839683]
[1767628747499,3.75592032,135.97,135.94,0.71839683]
[1767628747910,11.88462235,135.98,135.94,0.71839683]
[1767628749705,11.21005855,135.98,135.94,0.71839683]
[1767628749907,0.1,135.98,135.95,0.71839683]
[1767628751214,13.4,136.0,135.95,0.71839683]
[1767628751215,3.75592032,136.0,135.95,0.71839683]
[1767628751510,4.43085071,136.0,135.95,0.71839683]
[1767628751714,0.67493039,136.0,135.96,0.71839683]
[1767628752013,24.60834076,136.01,135.96,0.71839683]
[1767628753500,25.28327115,136.01,135.97,0.71839683]
[1767628754220,21.52735083,136.01,135.97,0.71839683]
[1767628754408,25.28327115,136.01,135.97,0.71839683]
[1767628754808,4.43085071,135.98,135.94,0.71839683]
[1767628755420,3.75592032,135.97,135.94,0.71839683]
[1767628755623,3.75592032,135.98,135.95,0.71839683]
[1767628756296,11.78483275,135.99,135.95,0.71839683]
[1767628756692,0.77493039,136.11,136.06,3.83226406]
[1767628756919,4.43085071,136.09,136.06,3.83226406]
[1767628757221,7.44710233,136.11,136.01,0.71839683]
[1767628757222,0.67493039,136.07,136.01,0.71839683]
[1767628757399,4.43085071,136.07,136.02,0.71839683]
[1767628757719,3.75592032,136.07,136.02,0.71839683]
[1767628758131,13.4,136.08,136.02,0.71839683]
[1767628758313,3.75592032,136.07,136.02,0.71839683]
[1767628760098,29.47660912,136.08,136.02,0.71839683]
[1767628761719,30.15153951,136.08,136.02,0.71839683]
[1767628762022,26.39561919,136.08,136.02,0.71839683]
[1767628762221,30.15153951,136.08,136.02,0.71839683]
[1767628762822,3.75592032,136.07,136.02,0.71839683]
[1767628763607,50.13983841,136.1,135.99,17.15592032]
[1767628763608,7.35077918,136.04,135.99,17.15592032]
[1767628763809,19.05164514,136.05,135.99,13.4]
[1767628764007,19.05164514,136.05,136.0,3.75592032]
[1767628764008,18.37671475,136.05,136.0,3.75592032]
[1767628764622,19.05164514,136.05,136.0,3.75592032]
[1767628765407,25.72695363,136.05,136.0,3.75592032]
[1767628765718,25.72695363,136.05,136.01,0.71839683]
[1767628766715,30.15780434,136.05,136.01,0.71839683]
[1767628769131,26.40188402,136.05,136.01,0.71839683]
[1767628770046,0.67493039,136.04,136.01,3.75592032]
[1767628770207,0.67493039,136.04,136.02,3.75592032]
[1767628770920,0.67493039,136.04,136.01,3.75592032]
[1767628771227,7.35131956,136.03,136.01,3.75592032]
[1767628771629,7.35131956,136.03,136.01,4.45333211]
[1767628772132,7.35131956,136.03,136.01,0.69741179]
[1767628772431,7.31712818,136.03,136.0,3.75592032]
[1767628773516,25.72836092,136.04,136.0,3.75592032]
[1767628774238,0.65520779,136.03,136.0,3.75592032]
[1767628775140,8.00687958,136.03,135.99,17.15592032]
[1767628775315,8.00687958,136.03,135.99,13.4]
[1767628775613,8.00687958,136.03,135.99,17.15592032]
[1767628776110,8.00687958,136.03,136.0,3.75592032]
[1767628776440,8.00687958,136.03,135.99,13.4]
[1767628776639,8.00687958,136.03,136.0,3.75592032]
[1767628777941,19.03278953,136.04,136.0,3.75592032]
[1767628778321,22.78870985,136.04,135.99,17.15592032]
[1767628778737,0.65520779,136.03,135.99,17.15592032]
[1767628778927,22.13350206,136.04,135.99,17.15592032]
[1767628779140,30.13948903,136.04,135.99,13.4]
[1767628779323,30.13948903,136.04,135.99,17.15592032]
[1767628780444,26.38356871,136.04,135.99,17.15592032]
[1767628780823,26.38356871,136.04,135.99,13.4]
[1767628781028,26.38356871,136.04,135.99,17.15592032]
[1767628781821,18.37758174,136.04,135.99,13.4]
[1767628782021,0.65520779,136.03,135.99,17.15592032]
[1767628782641,22.13350206,136.04,135.99,17.50062032]
[1767628783144,22.13350206,136.04,135.99,13.7447]
[1767628783445,29.48428124,136.04,135.99,13.7447]
[1767628784542,0.65520779,136.03,135.99,13.7447]
[1767628784745,0.65520779,136.02,135.97,0.3447]
[1767628785040,0.65520779,136.02,135.97,2.39710439]
[1767628785648,0.65520779,136.02,135.96,5.51529]
[1767628785827,7.35240055,136.01,135.97,2.39710439]
[1767628786238,25.73340194,136.01,135.97,2.39710439]
[1767628786635,25.73340194,136.01,135.98,2.39710439]
[1767628786944,25.73340194,136.01,135.96,5.51529]
[1767628786945,7.35240055,136.01,135.99,2.39710439]
[1767628787148,7.11214054,136.01,135.99,2.39710439]
[1767628787524,7.11214054,136.01,135.98,2.39710439]
[1767628788143,7.05214055,136.01,135.98,2.39710439]
[1767628788447,6.99214056,136.01,135.98,2.39710439]
[1767628788830,25.37314195,136.01,135.97,2.39710439]
[1767628789028,25.37314195,136.01,135.96,5.51529]
[1767628789239,25.37314195,136.01,135.97,2.39710439]
[1767628791950,26.02834974,136.01,135.97,2.39710439]
[1767628792140,26.02834974,136.01,135.96,7.91239439]
[1767628793528,0.65520779,136.0,135.95,82.89831565]
[1767628793848,2.39710439,135.99,135.95,14.89395377]
[1767628794056,0.65520779,135.98,135.95,14.89395377]
[1767628795031,7.29456351,135.97,135.95,14.89395377]
[1767628797255,0.65520779,135.98,135.95,14.89395377]
[1767628798754,8.00977129,135.97,135.95,14.89395377]
[1767628798956,0.65520779,135.96,135.95,14.89395377]
[1767628799333,0.65520779,135.95,135.92,5.51529]
[1767628799532,0.65520779,135.95,135.91,5.51529]
[1767628799753,8.01126915,135.95,135.91,5.51529]
[1767628800457,8.01126915,135.95,135.89,18.91529]
[1767628800757,8.01126915,135.95,135.9,5.51529]
[1767628801134,10.40837354,135.95,135.9,5.51529]
[1767628801649,8.04106084,135.95,135.9,5.51529]
[1767628801834,8.04106084,135.95,135.9,7.91239439]
[1767628802353,8.04106084,135.95,135.9,5.51529]
[1767628802555,8.04106084,135.95,135.9,7.91239439]
[1767628802740,7.98106083,135.95,135.91,2.39710439]
[1767628803143,7.98106083,135.95,135.9,5.51529]
[1767628803357,7.98106083,135.95,135.91,2.39710439]
[1767628803538,7.98106083,135.95,135.9,7.91239439]
[1767628803847,28.70727885,135.95,135.9,5.51529]
[1767628804046,26.31017446,135.95,135.9,7.91239439]
[1767628804246,7.92106082,135.95,135.91,2.39710439]
[1767628804558,0.68499948,135.95,135.91,2.39710439]
[1767628804734,34.1843689,135.97,135.89,13.4]
[1767628804735,0.66594589,135.93,135.89,13.4]
[1767628804939,0.6059459,135.93,135.89,0.05999999]
[1767628805765,203.41828091,136.06,135.88,2.39710439]
[1767628805766,7.35023888,136.05,135.93,0.05999999]
[1767628805952,2.39710439,136.02,135.96,2.39710439]
[1767628806262,2.39710439,136.01,135.95,2.39710439]
[1767628806850,0.66594589,135.99,135.94,2.39710439]
[1767628807450,0.66594589,135.98,135.92,2.39710439]
[1767628807643,0.66594589,135.97,135.91,5.51529]
[1767628807850,8.02105033,135.96,135.91,2.39710439]
[1767628808050,0.66594589,135.95,135.92,2.39710439]
[1767628808260,8.02105033,135.96,135.92,2.39710439]
[1767628808583,0.66594589,135.98,135.94,2.39710439]
[1767628808740,7.35077918,136.04,135.96,2.39710439]
[1767628808741,0.66594589,136.0,135.96,2.39710439]
[1767628808940,0.66594589,136.0,135.95,2.39710439]
[1767628809247,0.66594589,136.0,135.96,2.39710439]
[1767628809447,0.66594589,136.0,135.93,5.51529]
[1767628809448,0.66594589,136.0,135.95,2.39710439]
[1767628809752,8.01942776,135.99,135.93,12.8716265]
[1767628809953,8.01942776,135.99,135.95,2.39710439]
[1767628810372,8.01942776,135.99,135.93,2.39710439]
[1767628810373,0.66594589,135.98,135.93,2.39710439]
[1767628810972,0.66594589,135.98,135.91,5.51529]
[1767628811158,0.66594589,135.98,135.93,2.39710439]
[1767628811361,0.66594589,135.98,135.94,2.39710439]
[1767628811663,0.66594589,135.96,135.91,5.51529]
[1767628811863,0.66594589,135.96,135.91,7.91239439]
[1767628812166,0.66594589,135.96,135.92,2.39710439]
[1767628812879,8.02116996,135.96,135.92,2.39710439]
[1767628814361,8.02116996,135.96,135.91,12.87307895]
[1767628814650,8.02116996,135.96,135.92,2.39710439]
[1767628815276,0.66594589,135.95,135.91,7.91239439]
[1767628815582,7.35522407,135.96,135.92,2.39710439]
[1767628816088,8.02116996,135.96,135.91,15.27012366]
[1767628816583,0.66594589,135.93,135.87,21.54085082]
[1767628816748,0.6059459,135.92,135.87,28.90052259]
[1767628816944,0.6059459,135.92,135.87,9.81677615]
[1767628817264,0.54594591,135.92,135.87,2.45710438]
[1767628817673,0.54594591,135.92,135.87,7.41991641]
[1767628817893,0.54594591,135.92,135.87,9.8170208]
[1767628818181,7.90334986,135.92,135.87,9.8170208]
[1767628818884,10.30045425,135.92,135.87,2.45710438]
[1767628819275,10.30045425,135.92,135.86,60.07826212]
[1767628819276,0.66594589,135.9,135.86,60.07826212]
[1767628819482,0.66594589,135.89,135.86,60.07826212]
[1767628819659,0.66594589,135.89,135.81,0.2]
[1767628819660,0.66594589,135.86,135.81,0.2]
[1767628819999,2.39710439,135.87,135.82,0.68014418]
[1767628820000,3.06305028,135.87,135.82,0.68014418]
[1767628820160,0.66594589,135.87,135.82,3.07724857]
[1767628820355,0.66594589,135.88,135.82,7.36265758]
[1767628820588,0.66594589,135.9,135.86,0.68014418]
[1767628820887,0.66594589,135.89,135.84,3.07724857]
[1767628821555,3.06305028,135.88,135.82,3.07724857]
[1767628821772,0.66594589,135.87,135.82,3.07724857]
[1767628821973,0.66594589,135.87,135.82,0.68014418]
[1767628822179,0.66594589,135.87,135.82,3.07724857]
[1767628822490,0.66594589,135.86,135.82,0.68014418]
[1767628822660,0.6059459,135.86,135.82,0.68014418]
[1767628822860,0.6059459,135.86,135.81,15.47552344]
[1767628822861,0.6059459,135.86,135.81,2.59710439]
[1767628823162,7.36004054,135.87,135.81,3.27724857]
[1767628823387,2.39710439,135.86,135.81,0.88014418]
[1767628823679,9.75714493,135.87,135.81,3.27724857]
[1767628824104,7.35889322,135.89,135.81,0.88014418]
[1767628824387,23.15599761,135.89,135.83,3.07724857]
[1767628824591,0.66594589,135.88,135.81,8.24327276]
[1767628824880,0.66594589,135.88,135.83,3.07724857]
[1767628825082,0.66594589,135.88,135.83,0.68014418]
[1767628825083,0.66594589,135.87,135.83,0.68014418]
[1767628825282,0.66594589,135.9,135.85,3.07724857]
[1767628825583,0.66594589,135.89,135.85,3.07724857]
[1767628826257,0.66594589,135.88,135.84,0.68014418]
[1767628826782,8.02500687,135.89,135.83,7.36191691]
[1767628826972,6.56444411,135.87,135.82,6.5786424]
[1767628827484,0.66594589,135.91,135.86,6.5786424]
[1767628827685,0.66594589,135.91,135.87,5.89849822]
[1767628827979,0.66594589,135.91,135.87,0.68014418]
[1767628828283,0.66594589,135.91,135.88,5.89849822]
[1767628828601,0.66594589,135.91,135.87,8.03980464]
[1767628828782,0.66594589,135.91,135.86,5.89849822]
[1767628829079,0.66594589,135.9,135.87,5.89849822]
[1767628830369,0.66594589,135.91,135.87,5.89849822]
[1767628831055,0.66594589,135.91,135.86,8.0402864]
[1767628831260,0.66594589,135.91,135.87,5.89849822]
[1767628832963,0.66594589,135.91,135.88,5.89849822]
[1767628833261,0.66594589,135.91,135.87,13.95534081]
[1767628833467,0.66594589,135.91,135.87,6.59572377]
[1767628834069,0.66594589,135.91,135.87,0.69722555]
[1767628834270,0.66594589,135.91,135.87,6.59572377]
[1767628835789,0.66594589,135.91,135.87,13.95564492]
[1767628836397,0.65755658,135.89,135.84,19.10042438]
[1767628836693,0.65755658,135.89,135.86,7.36047502]
[1767628836888,0.65755658,135.9,135.86,13.95619879]
[1767628837878,0.65755658,135.92,135.88,5.89849822]
[1767628838369,0.65755658,135.92,135.87,6.59572377]
[1767628838573,0.65755658,135.91,135.87,0.69722555]
[1767628839095,0.65755658,135.91,135.87,6.59572377]
[1767628839579,0.65755658,135.91,135.87,0.69722555]
[1767628839892,0.65755658,135.91,135.87,8.05698054]
[1767628840109,0.65755658,135.91,135.87,7.35975499]
[1767628840273,0.65755658,135.91,135.87,13.25825321]
[1767628840473,0.65755658,135.91,135.87,7.35975499]
[1767628840679,0.65755658,135.91,135.87,13.25825321]
[1767628841800,0.65755658,135.91,135.87,7.35975499]
[1767628841999,0.65755658,135.91,135.87,13.25825321]
[1767628842304,0.65755658,135.91,135.87,5.89849822]
[1767628842598,0.65755658,135.91,135.88,5.89849822]
[1767628842897,0.65755658,135.91,135.87,5.89849822]
[1767628843405,0.65755658,135.91,135.87,13.25823778]
[1767628844096,0.65755658,135.91,135.83,5.51529]
[1767628844097,0.65755658,135.89,135.83,5.51529]
[1767628844302,0.65755658,135.88,135.83,5.89849822]
[1767628844494,0.65755658,135.88,135.83,9.58555263]
[1767628845098,0.65755658,135.88,135.82,8.05960292]
[1767628845099,0.65755658,135.87,135.82,9.58555263]
[1767628845398,0.65755658,135.87,135.81,17.14862954]
[1767628845399,0.65755658,135.86,135.81,17.14862954]
[1767628845601,0.65755658,135.86,135.82,9.58555263]
[1767628845977,0.65755658,135.86,135.81,8.26030246]
[1767628846173,0.65755658,135.86,135.82,9.58555263]
[1767628846498,0.65755658,135.85,135.81,8.26030246]
[1767628846699,0.65755658,135.85,135.82,3.75413681]
[1767628847299,0.65755658,135.85,135.83,3.75413681]
[1767628847794,0.65755658,135.87,135.83,3.75413681]
[1767628848512,7.36002596,135.87,135.83,3.75413681]
[1767628848802,0.65755658,135.86,135.81,11.31734312]
[1767628848974,0.65755658,135.86,135.82,3.75413681]
[1767628849176,0.65755658,135.86,135.81,0.2]
[1767628849575,0.65755658,135.86,135.81,7.56319059]
[1767628849776,0.65755658,135.86,135.82,3.75413681]
[1767628849972,0.65755658,135.86,135.83,7.36212903]
[1767628850194,0.65755658,135.86,135.83,11.11626584]
[1767628850905,0.65755658,135.88,135.85,3.75413681]
[1767628851090,0.65755658,135.88,135.83,8.05935458]
[1767628851091,0.65755658,135.88,135.86,3.75413681]
[1767628851401,0.65755658,135.9,135.87,3.75413681]
[1767628851578,0.65755658,135.9,135.85,0.69722555]
[1767628851775,0.65755658,135.9,135.87,3.75413681]
[1767628852894,0.65755658,135.9,135.87,11.11398126]
[1767628853287,0.65755658,135.9,135.87,3.75413681]
[1767628853800,0.7208681,135.91,135.89,3.75413681]
[1767628854900,0.7208681,135.91,135.88,11.11349079]
[1767628855293,121.48960257,135.95,135.91,0.71431049]
[1767628855294,0.7208681,135.95,135.91,0.71431049]
[1767628855492,3.75413681,136.08,135.94,3.75413681]
[1767628855493,0.7208681,135.96,135.94,3.75413681]
[1767628856400,0.7208681,135.96,135.92,0.71431049]
[1767628856600,0.7208681,135.96,135.94,9.57015636]
[1767628856984,0.7208681,135.98,135.95,9.57015636]
[1767628858096,0.7208681,135.98,135.95,16.92579388]
[1767628858284,0.7208681,135.98,135.96,9.57015636]
[1767628859806,0.7208681,135.98,135.94,7.35618655]
[1767628860008,0.7208681,135.98,135.96,9.57015636]
[1767628860509,0.7208681,135.98,135.95,9.57015636]
[1767628860910,0.7208681,135.98,135.95,16.92575806]
[1767628861096,0.7208681,135.98,135.96,9.57015636]
[1767628861301,0.7208681,135.98,135.94,7.35607365]
[1767628861504,0.7208681,135.98,135.94,16.92623001]
[1767628861892,0.7208681,135.98,135.95,16.92568194]
[1767628863910,7.35313675,136.0,135.97,9.57015636]
[1767628863911,0.7227765,136.0,135.97,9.57015636]
[1767628864487,0.7227765,136.0,135.95,26.45228694]
[1767628864699,0.7227765,136.0,135.96,9.57015636]
[1767628865809,0.7227765,136.0,135.96,16.92485955]
[1767628866028,9.57015636,136.05,135.99,9.57015636]
[1767628866189,13.4,136.04,135.99,9.57015636]
[1767628866389,22.97015636,136.04,135.99,9.57015636]
[1767628867316,13.4,136.04,135.99,17.63117603]
[1767628867512,20.75045801,136.05,136.0,9.57015636]
[1767628867818,20.75045801,136.05,136.0,10.27780408]
[1767628868016,14.1227765,136.05,136.01,9.57015636]
[1767628868227,14.1227765,136.05,136.0,0.70764772]
[1767628868418,14.1227765,136.05,136.01,9.57015636]
[1767628868419,0.64295255,136.04,136.01,9.57015636]
[1767628869516,13.4,136.06,136.02,10.27780408]
[1767628870014,14.1227765,136.06,136.02,9.57015636]
[1767628870213,0.64295255,136.05,136.02,9.57015636]
[1767628870412,0.64295255,136.05,136.01,8.05988262]
[1767628870723,0.64295255,136.05,136.02,9.57015636]
[1767628871137,0.64295255,136.05,136.01,17.63003898]
[1767628872705,14.04295255,136.06,136.02,10.27780408]
[1767628872903,13.4,136.06,136.03,10.27780408]
[1767628873825,14.12197827,136.06,136.03,10.27780408]
[1767628874017,14.12197827,136.06,136.03,9.57015636]
[1767628874535,0.7227765,136.08,136.03,10.27780408]
[1767628874711,0.64295255,136.07,136.03,17.62889792]
[1767628876137,13.4,136.08,136.05,10.27780408]
[1767628877223,13.4,136.08,136.05,17.62802651]
[1767628877736,0.72119592,136.05,135.99,8.06077624]
[1767628877943,9.57015636,136.03,136.0,8.06056868]
[1767628878142,10.21467369,136.04,136.0,8.06056868]
[1767628878526,4.38974433,136.04,136.0,8.06056868]
[1767628878838,17.8680035,136.05,136.01,0.70764772]
[1767628879033,14.1227765,136.05,136.01,0.70764772]
[1767628879230,17.8680035,136.05,136.01,0.70764772]
[1767628879437,4.38817955,136.04,136.0,8.06056868]
[1767628880131,4.46720527,136.03,135.99,0.70764772]
[1767628880337,0.72197827,136.03,135.99,0.70764772]
[1767628880540,4.46720527,136.03,135.99,0.70764772]
[1767628880712,0.6437428,136.02,135.98,0.70764772]
[1767628880918,4.3889698,136.02,135.98,8.06165514]
[1767628881334,4.3889698,136.02,135.98,0.70764772]
[1767628883050,4.46565613,135.99,135.94,8.06331705]
[1767628883260,4.40565614,135.99,135.95,8.06300978]
[1767628883439,0.66042914,135.99,135.95,8.06300978]
[1767628884452,4.40565614,135.99,135.95,0.70764772]
[1767628885232,4.40565614,135.99,135.95,8.06327242]
[1767628885436,11.68209727,136.0,135.96,0.70764772]
[1767628886150,7.93687027,136.0,135.96,0.70764772]
[1767628886343,11.68209727,136.0,135.96,0.70764772]
[1767628887950,0.58493087,135.98,135.94,11.80888214]
[1767628888151,0.52493088,135.98,135.94,11.80888214]
[1767628888851,0.46493089,135.98,135.94,11.80888214]
[1767628889427,0.46493089,135.98,135.95,7.35552555]
[1767628889634,11.09840692,136.0,135.95,8.06317327]
[1767628890244,25.73553286,136.0,135.92,0.70764772]
[1767628890554,25.73553286,136.0,135.91,37.30899134]
[1767628890555,17.145227,135.99,135.93,4.45287472]
[1767628890734,13.4,135.99,135.93,4.45287472]
[1767628890934,0.71672287,135.98,135.93,4.45287472]
[1767628891335,0.7142631,135.96,135.91,0.67544432]
[1767628891538,0.7142631,135.96,135.92,0.67544432]
[1767628891945,25.73912461,135.98,135.89,64.36584996]
[1767628891946,14.11672287,135.98,135.94,0.67544432]
[1767628892159,14.11672287,135.98,135.94,4.42067132]
[1767628892354,0.71672287,135.98,135.94,4.42067132]
[1767628892663,0.71672287,135.98,135.94,0.67544432]
[1767628893650,0.71672287,135.98,135.94,11.77682613]
[1767628895243,0.71672287,135.98,135.94,4.42067132]
[1767628895851,0.71672287,135.98,135.94,11.77685422]
[1767628896738,0.71672287,135.98,135.94,8.03162722]
[1767628896966,8.07077806,135.98,135.94,0.67544432]
[1767628897464,0.71672287,135.98,135.94,8.03163024]
[1767628898145,0.71672287,135.98,135.94,0.67544432]
[1767628898463,8.07089521,135.98,135.94,0.67544432]
[1767628900247,11.81612221,135.98,135.94,0.67544432]
[1767628900651,3.745227,135.97,135.94,0.67544432]
[1767628901048,0.71672287,135.98,135.94,8.03160686]
[1767628901356,4.46194987,135.98,135.94,8.03160686]
[1767628901555,11.81599483,135.98,135.94,0.67544432]
[1767628901865,4.46194987,135.98,135.94,0.67544432]
[1767628902062,24.49896505,135.99,135.94,7.35605008]
[1767628902376,24.49896505,135.99,135.95,4.42067132]
[1767628902377,0.47074568,135.99,135.95,4.42067132]
[1767628902860,0.47074568,135.99,135.95,0.67544432]
[1767628903063,0.47074568,135.99,135.95,4.42067132]
[1767628903261,0.47074568,135.99,135.95,0.67544432]
[1767628903690,0.47074568,135.99,135.95,8.03068662]
[1767628903863,0.7142631,135.98,135.95,7.3552423]
[1767628904869,0.47318085,135.97,135.92,21.46665068]
[1767628905175,0.47318085,135.97,135.93,7.35639725]
[1767628905672,0.47318085,135.97,135.94,7.35605987]
[1767628905842,7.35355362,135.99,135.94,7.35605987]
[1767628906042,2.39859246,135.99,135.94,10.43009665]
[1767628906251,7.35280755,136.01,135.95,2.39859246]
[1767628906252,15.79859246,136.0,135.95,2.39859246]
[1767628906464,23.15140001,136.01,135.96,0.67544432]
[1767628906667,2.39859246,136.0,135.96,0.67544432]
[1767628907071,23.15140001,136.01,135.96,0.67544432]
[1767628907367,9.75153664,136.0,135.96,0.67544432]
[1767628907760,2.39859246,135.99,135.96,0.67544432]
[1767628908273,7.97198689,136.0,135.96,0.67544432]
[1767628908274,10.37057935,136.0,135.96,0.67544432]
[1767628908851,2.39859246,135.99,135.96,0.67544432]
[1767628909047,2.39859246,135.98,135.94,7.35591935]
[1767628909253,3.01243474,135.98,135.94,8.03136367]
[1767628909459,2.50274088,135.97,135.93,8.03199083]
[1767628909969,2.39859246,135.97,135.94,0.67544432]
[1767628910855,23.77174513,135.98,135.94,0.67544432]
[1767628911468,16.41763517,135.98,135.94,8.03159558]
[1767628911773,2.39859246,136.0,135.95,0.67544432]
[1767628911975,2.39859246,135.98,135.94,8.03159558]
[1767628912360,2.39859246,135.99,135.95,0.67544432]
[1767628912679,2.39859246,135.99,135.94,8.03159558]
[1767628912865,13.4,136.0,135.95,0.67544432]
[1767628913054,9.752167,135.99,135.95,0.67544432]
[1767628913667,9.752167,135.99,135.95,8.03108715]
[1767628913859,123.0791094,136.03,135.96,0.67544432]
[1767628914064,2.49759246,136.01,135.96,0.67544432]
[1767628915182,2.39859246,136.0,135.96,8.03035552]
[1767628915374,0.10311736,135.99,135.96,7.3549112]
[1767628915578,2.39859246,136.0,135.96,8.03035552]
[1767628915749,7.86734053,136.01,135.97,0.67544432]
[1767628915953,2.39859246,136.0,135.97,0.67544432]
[1767628916182,7.86734053,136.01,135.97,0.67544432]
[1767628916480,2.49759246,136.0,135.96,8.03035552]
[1767628916666,0.099,136.0,135.96,8.03035552]
[1767628916853,2.49759246,136.0,135.96,8.03035552]
[1767628917250,2.49759246,136.0,135.96,0.67544432]
[1767628917477,2.9093278,135.99,135.95,0.67544432]
[1767628917670,2.9093278,135.99,135.95,8.03105606]
[1767628918183,2.9093278,135.99,135.95,0.67544432]
[1767628919062,2.9093278,135.99,135.95,8.03101827]
[1767628919285,2.9093278,135.99,135.96,0.67544432]
[1767628919474,7.35314439,136.0,135.96,0.67544432]
[1767628919475,2.91348675,136.0,135.96,0.67544432]
[1767628919670,2.39859246,136.0,135.96,0.67544432]
[1767628920778,2.9093278,136.0,135.96,0.67544432]
[1767628921077,10.26231983,136.0,135.96,0.67544432]
[1767628921390,2.50170982,135.99,135.94,8.04013533]
[1767628921563,2.50170982,135.99,135.95,0.68419189]
[1767628922586,2.50170982,135.99,135.95,8.03981119]
[1767628923080,2.39859246,135.98,135.95,0.68419189]
[1767628923261,9.85527124,135.99,135.95,0.68419189]
[1767628923584,2.50170982,135.99,135.95,0.68419189]
[1767628923761,2.50574523,135.96,135.92,0.68419189]
[1767628923955,2.39859246,135.96,135.93,0.68419189]
[1767628924276,0.51489429,135.97,135.93,0.68419189]
[1767628924277,2.91348675,135.97,135.93,0.68419189]
[1767628924477,2.49759246,135.96,135.92,0.68419189]
[1767628925280,2.50170982,135.94,135.89,41.13759444]
[1767628925483,0.04311737,135.94,135.9,8.04218643]
[1767628925655,2.39859246,135.94,135.89,40.45340255]
[1767628925855,2.39859246,135.93,135.89,40.45340255]
[1767628926089,2.39859246,135.93,135.89,41.13759444]
[1767628926558,13.4,135.95,135.89,40.45340255]
[1767628926759,2.39859246,135.91,135.87,0.68419189]
[1767628926988,2.33859247,135.91,135.87,0.68419189]
[1767628927287,9.69648895,135.91,135.87,0.68419189]
[1767628927880,2.33859247,135.91,135.87,0.68419189]
[1767628928085,13.4,135.92,135.88,0.70135427]
[1767628928883,23.15601513,135.92,135.88,0.70135427]
[1767628930465,2.39859246,135.91,135.88,0.70135427]
[1767628930786,20.75742267,135.92,135.88,0.70135427]
[1767628930986,2.39859246,135.91,135.88,0.70135427]
[1767628931217,20.75742267,135.92,135.88,8.06076593]
[1767628931218,15.79859246,135.92,135.88,8.06076593]
[1767628931578,15.79859246,135.92,135.88,0.70135427]
[1767628932491,2.39859246,135.91,135.88,0.70135427]
[1767628932789,23.15590294,135.92,135.88,0.70135427]
[1767628933687,2.39859246,135.91,135.88,0.70135427]
[1767628934797,13.4,135.92,135.88,8.06067377]
[1767628934968,15.79859246,135.92,135.88,8.06067377]
[1767628935170,23.15596609,135.92,135.88,0.70135427]
[1767628935368,2.39859246,135.91,135.88,0.70135427]
[1767628935673,13.4,135.92,135.88,8.06058556]
[1767628935883,15.79859246,135.92,135.88,8.06058556]
[1767628936267,2.39859246,135.92,135.88,0.70135427]
[1767628936466,15.79859246,135.92,135.88,0.70135427]
[1767628936679,13.4,135.94,135.9,0.70135427]
[1767628936987,15.79859246,135.94,135.9,0.70135427]
[1767628937173,15.79859246,135.94,135.89,3.09994673]
[1767628937505,15.79859246,135.94,135.9,0.70135427]
[1767628937677,23.15487541,135.94,135.9,0.70135427]
[1767628937877,15.79859246,135.94,135.9,0.70135427]
[1767628938796,2.39859246,135.92,135.89,0.70135427]
[1767628939499,2.39859246,135.92,135.88,0.70135427]
[1767628939686,2.39859246,135.91,135.88,0.70135427]
[1767628940699,2.39859246,135.92,135.88,0.70135427]
[1767628941394,6.66645132,135.93,135.88,0.70135427]
[1767628941584,6.66645132,135.93,135.87,7.35982887]
[1767628941585,9.75586144,135.92,135.86,3.09994673]
[1767628942097,2.39859246,135.91,135.86,0.70135427]
[1767628942297,15.10974574,135.92,135.86,3.09994673]
[1767628942498,10.15106922,135.92,135.88,0.70135427]
[1767628942978,7.69247677,135.92,135.9,0.70135427]
[1767628947504,10.09106923,135.92,135.88,8.06072339]
[1767628947688,17.44847216,135.92,135.88,0.70135427]
[1767628948113,7.69247677,135.92,135.89,0.70135427]
[1767628948407,7.69247677,135.92,135.9,0.70135427]
[1767628948723,10.09106923,135.92,135.87,0.70135427]
[1767628949300,2.39859246,135.91,135.87,0.70135427]
[1767628949506,2.39859246,135.9,135.87,0.70135427]
[1767628950011,2.33859247,135.9,135.87,0.70135427]
[1767628950310,2.33859247,135.9,135.86,8.06173324]
[1767628950714,9.69697406,135.9,135.86,0.70135427]
[1767628950904,20.77806598,135.91,135.86,0.68102157]
[1767628951096,13.42,135.9,135.86,0.68102157]
[1767628951288,13.36000001,135.9,135.86,0.68102157]
[1767628951607,13.36000001,135.9,135.87,0.68102157]
[1767628951608,13.30000002,135.9,135.87,0.68102157]
[1767628951998,13.30000002,135.9,135.88,0.68102157]
[1767628952906,7.69247677,135.92,135.89,2.39859246]
[1767628953114,7.69247677,135.92,135.89,3.07961403]
[1767628953415,7.69247677,135.92,135.89,2.39859246]
[1767628953619,7.69247677,135.92,135.89,9.75745517]
[1767628954107,7.69247677,135.92,135.86,0.68102157]
[1767628954308,10.09106923,135.92,135.86,0.68102157]
[1767628954485,10.09106923,135.92,135.86,3.07961403]